[Event "Late-Titled-Tuesday-Blitz-October-03-2023"]
[Site "Chess.com"]
[Date "2023.10.03"]
[Round "3"]
[White "AjedrezenMadrid"]
[Black "Andrej2004"]
[Result "1-0"]
[WhiteElo "2472"]
[BlackElo "2629"]
[TimeControl "180+1"]
[EndTime "14:22:52 PDT"]
[Termination "AjedrezenMadrid won by resignation"]

1. b3 {[%clk 0:02:19.9]} 1... b6 {[%clk 0:02:57.9]} 2. Bb2 {[%clk 0:02:18.2]}
2... Bb7 {[%clk 0:02:57.6]} 3. Nf3 {[%clk 0:02:19.1]} 3... Nf6 {[%clk
0:02:57.7]} 4. g3 {[%clk 0:02:19.7]} 4... g6 {[%clk 0:02:58.3]} 5. Bg2 {[%clk
0:02:19.8]} 5... Bg7 {[%clk 0:02:58.1]} 6. O-O {[%clk 0:02:20.4]} 6... O-O
{[%clk 0:02:58.1]} 7. e3 {[%clk 0:02:21]} 7... d6 {[%clk 0:02:58.2]} 8. d4
{[%clk 0:02:21.4]} 8... Nbd7 {[%clk 0:02:57.7]} 9. c4 {[%clk 0:02:21.2]} 9...
Ne4 {[%clk 0:02:58]} 10. Nfd2 {[%clk 0:02:20.6]} 10... f5 {[%clk 0:02:54.7]} 11.
Nxe4 {[%clk 0:02:18.4]} 11... Bxe4 {[%clk 0:02:53.2]} 12. Bxe4 {[%clk
0:02:17.6]} 12... fxe4 {[%clk 0:02:54.1]} 13. Nc3 {[%clk 0:02:05.4]} 13... Nf6
{[%clk 0:02:51.1]} 14. Qc2 {[%clk 0:02:05.9]} 14... Qd7 {[%clk 0:02:46.6]} 15.
Nxe4 {[%clk 0:02:05.4]} 15... Nh5 {[%clk 0:02:46.9]} 16. Ng5 {[%clk 0:01:55.2]}
16... Rf5 {[%clk 0:02:41]} 17. Qe4 {[%clk 0:01:54.1]} 17... Qe8 {[%clk
0:02:06.3]} 18. f4 {[%clk 0:01:46.6]} 18... h6 {[%clk 0:01:59.6]} 19. g4 {[%clk
0:01:44.4]} 19... Nf6 {[%clk 0:01:58.2]} 20. Qe6+ {[%clk 0:01:44.2]} 20... Kh8
{[%clk 0:01:53.4]} 21. Nf7+ {[%clk 0:01:41.5]} 1-0

[Event "Late-Titled-Tuesday-Blitz-October-03-2023"]
[Site "Chess.com"]
[Date "2023.10.03"]
[Round "3"]
[White "HElissalt"]
[Black "angelgab3"]
[Result "0-1"]
[WhiteElo "2369"]
[BlackElo "2577"]
[TimeControl "180+1"]
[EndTime "14:22:55 PDT"]
[Termination "angelgab3 won by resignation"]

1. d4 {[%clk 0:02:56.9]} 1... Nf6 {[%clk 0:02:59.9]} 2. c4 {[%clk 0:02:55.6]}
2... e6 {[%clk 0:03:00.5]} 3. Nf3 {[%clk 0:02:54.8]} 3... d5 {[%clk 0:03:01.4]}
4. Bg5 {[%clk 0:02:50.4]} 4... dxc4 {[%clk 0:02:59.6]} 5. Qa4+ {[%clk
0:02:47.1]} 5... Nbd7 {[%clk 0:02:40.8]} 6. Qxc4 {[%clk 0:02:46]} 6... a6 {[%clk
0:02:41.6]} 7. g3 {[%clk 0:02:44.4]} 7... b5 {[%clk 0:02:41.6]} 8. Qc2 {[%clk
0:02:44.2]} 8... Bb7 {[%clk 0:02:41.8]} 9. Bg2 {[%clk 0:02:44.5]} 9... h6 {[%clk
0:02:39.6]} 10. Bxf6 {[%clk 0:02:42.2]} 10... Nxf6 {[%clk 0:02:40.5]} 11. Nbd2
{[%clk 0:02:41.5]} 11... Be7 {[%clk 0:02:34.4]} 12. O-O {[%clk 0:02:41.2]} 12...
O-O {[%clk 0:02:34.3]} 13. Rac1 {[%clk 0:02:38.8]} 13... Rc8 {[%clk 0:02:33.5]}
14. Rfd1 {[%clk 0:02:38]} 14... c5 {[%clk 0:02:24]} 15. dxc5 {[%clk 0:02:36.1]}
15... Bxc5 {[%clk 0:02:24.9]} 16. Qb1 {[%clk 0:02:20.4]} 16... Bxf2+ {[%clk
0:02:06.5]} 17. Kxf2 {[%clk 0:02:17.8]} 17... Ng4+ {[%clk 0:02:05.7]} 18. Ke1
{[%clk 0:01:33.6]} 18... Qb6 {[%clk 0:02:05.3]} 19. Ne4 {[%clk 0:01:28.5]} 19...
Bxe4 {[%clk 0:01:57.5]} 20. Qxe4 {[%clk 0:01:27.4]} 20... Qf2+ {[%clk
0:01:57.1]} 0-1

[Event "Late-Titled-Tuesday-Blitz-October-03-2023"]
[Site "Chess.com"]
[Date "2023.10.03"]
[Round "3"]
[White "RIPOL"]
[Black "microbear"]
[Result "1-0"]
[WhiteElo "2437"]
[BlackElo "2188"]
[TimeControl "180+1"]
[EndTime "14:23:15 PDT"]
[Termination "RIPOL won by resignation"]

1. d4 {[%clk 0:03:00.9]} 1... Nf6 {[%clk 0:02:55.6]} 2. Bg5 {[%clk 0:02:59.5]}
2... c5 {[%clk 0:02:54.8]} 3. Bxf6 {[%clk 0:02:58.5]} 3... gxf6 {[%clk
0:02:54.1]} 4. d5 {[%clk 0:02:58.2]} 4... d6 {[%clk 0:02:52.6]} 5. c4 {[%clk
0:02:57]} 5... b5 {[%clk 0:02:47.4]} 6. cxb5 {[%clk 0:02:55.4]} 6... a6 {[%clk
0:02:47.6]} 7. bxa6 {[%clk 0:02:53.4]} 7... Bg7 {[%clk 0:02:46.7]} 8. Nc3 {[%clk
0:02:53.5]} 8... f5 {[%clk 0:02:44.7]} 9. Qc2 {[%clk 0:02:52]} 9... Qa5 {[%clk
0:02:39.9]} 10. Nf3 {[%clk 0:02:47.1]} 10... Nxa6 {[%clk 0:02:30.7]} 11. Nd2
{[%clk 0:02:44.3]} 11... Nb4 {[%clk 0:02:27.6]} 12. Qc1 {[%clk 0:02:37.1]} 12...
Ba6 {[%clk 0:02:20.3]} 13. g3 {[%clk 0:02:33.7]} 13... O-O {[%clk 0:02:09.6]}
14. Bh3 {[%clk 0:02:32.1]} 14... Bc4 {[%clk 0:01:47.6]} 15. Nxc4 {[%clk
0:02:27.5]} 15... Bxc3+ {[%clk 0:01:33.3]} 16. bxc3 {[%clk 0:02:11.7]} 16...
Nxd5 {[%clk 0:01:24.8]} 17. O-O {[%clk 0:02:08]} 17... Qxc3 {[%clk 0:01:18.1]}
18. Bg2 {[%clk 0:01:48.7]} 1-0

[Event "Late-Titled-Tuesday-Blitz-October-03-2023"]
[Site "Chess.com"]
[Date "2023.10.03"]
[Round "3"]
[White "The_Straightforward_Rook"]
[Black "Fandorine"]
[Result "0-1"]
[WhiteElo "2558"]
[BlackElo "2942"]
[TimeControl "180+1"]
[EndTime "14:23:18 PDT"]
[Termination "Fandorine won by resignation"]

1. d4 {[%clk 0:02:57]} 1... Nf6 {[%clk 0:02:58.9]} 2. c4 {[%clk 0:02:55.2]} 2...
d6 {[%clk 0:02:58.7]} 3. Nf3 {[%clk 0:02:51.4]} 3... g6 {[%clk 0:02:59.1]} 4. e3
{[%clk 0:02:50.8]} 4... Bg7 {[%clk 0:02:58.9]} 5. Be2 {[%clk 0:02:49.7]} 5...
O-O {[%clk 0:02:59.4]} 6. Nc3 {[%clk 0:02:49.5]} 6... Nbd7 {[%clk 0:02:59.9]} 7.
O-O {[%clk 0:02:46.6]} 7... e5 {[%clk 0:03:00.3]} 8. b4 {[%clk 0:02:45.3]} 8...
exd4 {[%clk 0:02:58.7]} 9. exd4 {[%clk 0:02:43.5]} 9... d5 {[%clk 0:02:57.7]}
10. c5 {[%clk 0:02:42.2]} 10... Re8 {[%clk 0:02:39.8]} 11. h3 {[%clk 0:02:41.3]}
11... Nf8 {[%clk 0:02:38.7]} 12. Bf4 {[%clk 0:02:40.5]} 12... Bf5 {[%clk
0:02:22.2]} 13. a4 {[%clk 0:02:39]} 13... Ne6 {[%clk 0:02:17.9]} 14. Bh2 {[%clk
0:02:35.9]} 14... Ne4 {[%clk 0:02:13.5]} 15. Ra3 {[%clk 0:02:29.8]} 15... a5
{[%clk 0:02:09.1]} 16. bxa5 {[%clk 0:02:24.7]} 16... N6xc5 {[%clk 0:02:02.8]}
17. Nxd5 {[%clk 0:01:53.7]} 17... Qxd5 {[%clk 0:01:52.8]} 18. dxc5 {[%clk
0:01:54.1]} 18... Qxc5 {[%clk 0:01:53.4]} 19. Rb3 {[%clk 0:01:28.9]} 19... Nc3
{[%clk 0:01:49.8]} 20. Rxc3 {[%clk 0:01:21.9]} 20... Qxc3 {[%clk 0:01:50.7]} 0-1

[Event "Late-Titled-Tuesday-Blitz-October-03-2023"]
[Site "Chess.com"]
[Date "2023.10.03"]
[Round "3"]
[White "Casper"]
[Black "louis198"]
[Result "0-1"]
[WhiteElo "2436"]
[BlackElo "2621"]
[TimeControl "180+1"]
[EndTime "14:23:24 PDT"]
[Termination "louis198 won by resignation"]

1. e4 {[%clk 0:02:59]} 1... e6 {[%clk 0:03:00]} 2. d4 {[%clk 0:02:57]} 2... d5
{[%clk 0:03:00.9]} 3. Bd3 {[%clk 0:02:57.9]} 3... Nc6 {[%clk 0:03:01.2]} 4. Nf3
{[%clk 0:02:56.6]} 4... Nb4 {[%clk 0:02:54.5]} 5. O-O {[%clk 0:02:53.2]} 5...
Nxd3 {[%clk 0:02:50.7]} 6. Qxd3 {[%clk 0:02:54.1]} 6... Nf6 {[%clk 0:02:50.8]}
7. exd5 {[%clk 0:02:53.7]} 7... exd5 {[%clk 0:02:51]} 8. Re1+ {[%clk 0:02:54.4]}
8... Be7 {[%clk 0:02:50.8]} 9. Nc3 {[%clk 0:02:50.6]} 9... O-O {[%clk
0:02:50.9]} 10. h3 {[%clk 0:02:49]} 10... h6 {[%clk 0:02:50.8]} 11. Bf4 {[%clk
0:02:46.5]} 11... c6 {[%clk 0:02:51.2]} 12. Re2 {[%clk 0:02:45.4]} 12... Bd6
{[%clk 0:02:49.3]} 13. Be5 {[%clk 0:02:44.4]} 13... a5 {[%clk 0:02:49.6]} 14.
Rae1 {[%clk 0:02:43.8]} 14... b6 {[%clk 0:02:50]} 15. Re3 {[%clk 0:02:31.1]}
15... Ba6 {[%clk 0:02:50.4]} 16. Qd2 {[%clk 0:02:24]} 16... Bb4 {[%clk
0:02:47.8]} 17. a3 {[%clk 0:01:56.9]} 17... Ne4 {[%clk 0:02:45.9]} 18. Qd1
{[%clk 0:01:55.9]} 18... Nxc3 {[%clk 0:02:41.5]} 19. bxc3 {[%clk 0:01:54.3]}
19... Bxa3 {[%clk 0:02:42.3]} 20. Nh2 {[%clk 0:01:51.4]} 20... Bd6 {[%clk
0:02:41.5]} 21. Qh5 {[%clk 0:01:48]} 21... Bxe5 {[%clk 0:02:41.2]} 22. Rxe5
{[%clk 0:01:40.5]} 22... Bc8 {[%clk 0:02:41.3]} 23. R1e3 {[%clk 0:01:36]} 23...
a4 {[%clk 0:02:37.7]} 24. Rg3 {[%clk 0:01:36]} 24... Qf6 {[%clk 0:02:37.6]} 25.
Ng4 {[%clk 0:00:59.6]} 25... Bxg4 {[%clk 0:02:37.6]} 26. Qxg4 {[%clk 0:01:00.5]}
26... a3 {[%clk 0:02:36.2]} 27. Rf5 {[%clk 0:01:01.1]} 27... Qg6 {[%clk
0:02:32.8]} 28. Qf4 {[%clk 0:00:57.3]} 28... a2 {[%clk 0:02:29.7]} 0-1

[Event "Late-Titled-Tuesday-Blitz-October-03-2023"]
[Site "Chess.com"]
[Date "2023.10.03"]
[Round "3"]
[White "Mops_2004"]
[Black "Leebit02"]
[Result "1-0"]
[WhiteElo "2814"]
[BlackElo "2497"]
[TimeControl "180+1"]
[EndTime "14:23:41 PDT"]
[Termination "Mops_2004 won by resignation"]

1. g3 {[%clk 0:03:00.9]} 1... d5 {[%clk 0:02:56.9]} 2. Nf3 {[%clk 0:03:00.4]}
2... Nf6 {[%clk 0:02:50.8]} 3. Bg2 {[%clk 0:03:00.5]} 3... e6 {[%clk 0:02:51.2]}
4. O-O {[%clk 0:03:00.6]} 4... Be7 {[%clk 0:02:51.6]} 5. c4 {[%clk 0:03:00.4]}
5... O-O {[%clk 0:02:48.8]} 6. b3 {[%clk 0:03:00.6]} 6... d4 {[%clk 0:02:47.8]}
7. e3 {[%clk 0:03:00.7]} 7... c5 {[%clk 0:02:47.9]} 8. Ne5 {[%clk 0:03:00.6]}
8... Nfd7 {[%clk 0:02:41.2]} 9. exd4 {[%clk 0:02:58]} 9... cxd4 {[%clk 0:02:39]}
10. Nxd7 {[%clk 0:02:57.3]} 10... Qxd7 {[%clk 0:02:37.6]} 11. d3 {[%clk
0:02:57]} 11... Nc6 {[%clk 0:02:34.7]} 12. Ba3 {[%clk 0:02:56.8]} 12... a5
{[%clk 0:02:19.2]} 13. Re1 {[%clk 0:02:53.1]} 13... Re8 {[%clk 0:02:06]} 14.
Bxe7 {[%clk 0:02:52.1]} 14... Qxe7 {[%clk 0:02:06.5]} 15. Nd2 {[%clk 0:02:44.8]}
15... e5 {[%clk 0:02:05.3]} 16. f4 {[%clk 0:02:41.7]} 16... Qc7 {[%clk
0:01:48.5]} 17. Qh5 {[%clk 0:02:30.8]} 17... g6 {[%clk 0:01:40.4]} 18. Qg5
{[%clk 0:02:29.5]} 18... Bf5 {[%clk 0:01:37.8]} 19. Be4 {[%clk 0:02:22.8]} 19...
Bxe4 {[%clk 0:00:47.5]} 20. Nxe4 {[%clk 0:02:22.5]} 20... Re6 {[%clk 0:00:46.5]}
21. f5 {[%clk 0:02:21.8]} 21... h6 {[%clk 0:00:24.8]} 22. Qxh6 {[%clk
0:02:21.8]} 22... gxf5 {[%clk 0:00:24.8]} 23. Nf6+ {[%clk 0:02:22.4]} 1-0

[Event "Late-Titled-Tuesday-Blitz-October-03-2023"]
[Site "Chess.com"]
[Date "2023.10.03"]
[Round "3"]
[White "biostatistician"]
[Black "SergioMoralesG"]
[Result "1-0"]
[WhiteElo "2622"]
[BlackElo "2441"]
[TimeControl "180+1"]
[EndTime "14:23:41 PDT"]
[Termination "biostatistician won by checkmate"]

1. d4 {[%clk 0:03:00]} 1... d5 {[%clk 0:00:32.4]} 2. Nf3 {[%clk 0:02:58.7]} 2...
Nf6 {[%clk 0:00:32.1]} 3. c4 {[%clk 0:02:59.6]} 3... c6 {[%clk 0:00:32.2]} 4.
cxd5 {[%clk 0:02:59.8]} 4... cxd5 {[%clk 0:00:33.1]} 5. Nc3 {[%clk 0:03:00.7]}
5... Nc6 {[%clk 0:00:33]} 6. Bf4 {[%clk 0:03:01.3]} 6... Bf5 {[%clk 0:00:33.5]}
7. e3 {[%clk 0:02:59.6]} 7... e6 {[%clk 0:00:33.4]} 8. Qb3 {[%clk 0:02:59.9]}
8... Bb4 {[%clk 0:00:28]} 9. Bb5 {[%clk 0:02:59.2]} 9... O-O {[%clk 0:00:24.3]}
10. O-O {[%clk 0:02:59.4]} 10... Bxc3 {[%clk 0:00:23.8]} 11. Qxc3 {[%clk
0:03:00.3]} 11... Rc8 {[%clk 0:00:23.5]} 12. Rfc1 {[%clk 0:03:00.3]} 12... a6
{[%clk 0:00:20.4]} 13. Bxc6 {[%clk 0:02:59.8]} 13... Rxc6 {[%clk 0:00:21.3]} 14.
Qe1 {[%clk 0:03:00.1]} 14... Qb6 {[%clk 0:00:18.1]} 15. Rxc6 {[%clk 0:02:57.2]}
15... Qxc6 {[%clk 0:00:17.9]} 16. Rc1 {[%clk 0:02:54.5]} 16... Qb5 {[%clk
0:00:17.2]} 17. b3 {[%clk 0:02:51.8]} 17... Nd7 {[%clk 0:00:17.4]} 18. Qc3
{[%clk 0:02:50.2]} 18... h6 {[%clk 0:00:13.4]} 19. Qc7 {[%clk 0:02:41.4]} 19...
g5 {[%clk 0:00:09.1]} 20. Bd6 {[%clk 0:02:40]} 20... Re8 {[%clk 0:00:08.1]} 21.
h4 {[%clk 0:02:38.2]} 21... g4 {[%clk 0:00:08.1]} 22. Ne5 {[%clk 0:02:37.3]}
22... Nxe5 {[%clk 0:00:08]} 23. Bxe5 {[%clk 0:02:38.2]} 23... Kh7 {[%clk
0:00:07.3]} 24. Qxf7# {[%clk 0:02:36.9]} 1-0

[Event "Late-Titled-Tuesday-Blitz-October-03-2023"]
[Site "Chess.com"]
[Date "2023.10.03"]
[Round "3"]
[White "lemures27"]
[Black "Mikhail_Golubev"]
[Result "1/2-1/2"]
[WhiteElo "2435"]
[BlackElo "2607"]
[TimeControl "180+1"]
[EndTime "14:23:50 PDT"]
[Termination "Game drawn by repetition"]

1. d4 {[%clk 0:03:00.9]} 1... Nf6 {[%clk 0:02:59.4]} 2. c4 {[%clk 0:02:57.2]}
2... g6 {[%clk 0:02:58.8]} 3. Nf3 {[%clk 0:02:57.5]} 3... Bg7 {[%clk 0:02:59.2]}
4. Nc3 {[%clk 0:02:56.7]} 4... O-O {[%clk 0:02:59.5]} 5. e4 {[%clk 0:02:57.2]}
5... d6 {[%clk 0:02:59.6]} 6. Be2 {[%clk 0:02:56.1]} 6... e5 {[%clk 0:02:59.2]}
7. Be3 {[%clk 0:02:55.7]} 7... h6 {[%clk 0:02:56.5]} 8. d5 {[%clk 0:02:46.2]}
8... Ng4 {[%clk 0:02:50.9]} 9. Bc1 {[%clk 0:02:44.1]} 9... f5 {[%clk 0:02:45.2]}
10. h3 {[%clk 0:02:43.4]} 10... Nf6 {[%clk 0:02:44.6]} 11. Nd2 {[%clk
0:02:42.4]} 11... a5 {[%clk 0:02:37]} 12. g4 {[%clk 0:02:41.4]} 12... Na6 {[%clk
0:02:27.9]} 13. gxf5 {[%clk 0:02:28.7]} 13... gxf5 {[%clk 0:02:26.2]} 14. Rg1
{[%clk 0:02:29.2]} 14... Nc5 {[%clk 0:02:18.1]} 15. Nb3 {[%clk 0:02:15.9]} 15...
Nfxe4 {[%clk 0:01:36.7]} 16. Nxc5 {[%clk 0:02:05.3]} 16... Nxf2 {[%clk
0:01:31.5]} 17. Kxf2 {[%clk 0:02:01.4]} 17... Qh4+ {[%clk 0:01:31.2]} 18. Kg2
{[%clk 0:02:01.3]} 18... f4 {[%clk 0:01:24.6]} 19. Ne6 {[%clk 0:01:58.4]} 19...
Bxe6 {[%clk 0:01:21.1]} 20. dxe6 {[%clk 0:01:57.5]} 20... Qg3+ {[%clk
0:01:14.4]} 21. Kf1 {[%clk 0:01:55.1]} 21... Qxh3+ {[%clk 0:01:15]} 22. Kf2
{[%clk 0:01:54.9]} 22... Qh4+ {[%clk 0:01:05.7]} 23. Kf3 {[%clk 0:01:53.8]}
23... Qh3+ {[%clk 0:00:59.2]} 24. Kf2 {[%clk 0:01:47.2]} 24... Qh4+ {[%clk
0:00:57.2]} 25. Kf1 {[%clk 0:01:46.4]} 25... Qh3+ {[%clk 0:00:56.6]} 26. Kf2
{[%clk 0:01:41.5]} 1/2-1/2

[Event "Late-Titled-Tuesday-Blitz-October-03-2023"]
[Site "Chess.com"]
[Date "2023.10.03"]
[Round "3"]
[White "quvnoq_muxlis"]
[Black "NMZanette"]
[Result "1-0"]
[WhiteElo "2775"]
[BlackElo "2296"]
[TimeControl "180+1"]
[EndTime "14:23:50 PDT"]
[Termination "quvnoq_muxlis won by resignation"]

1. e4 {[%clk 0:03:00.9]} 1... c5 {[%clk 0:02:59.5]} 2. Nf3 {[%clk 0:03:01.1]}
2... d6 {[%clk 0:02:59.7]} 3. d4 {[%clk 0:02:59]} 3... cxd4 {[%clk 0:03:00.6]}
4. Nxd4 {[%clk 0:02:59.9]} 4... Nf6 {[%clk 0:03:00.2]} 5. Nc3 {[%clk 0:02:59.9]}
5... a6 {[%clk 0:03:00]} 6. Be2 {[%clk 0:03:00]} 6... e5 {[%clk 0:02:59.4]} 7.
Nb3 {[%clk 0:03:00.4]} 7... Be7 {[%clk 0:02:56.7]} 8. g4 {[%clk 0:03:00.6]} 8...
h6 {[%clk 0:02:54.9]} 9. h4 {[%clk 0:02:59.6]} 9... Be6 {[%clk 0:02:54.2]} 10.
Be3 {[%clk 0:02:59.7]} 10... Nc6 {[%clk 0:02:50.6]} 11. Rg1 {[%clk 0:02:56.4]}
11... Nd7 {[%clk 0:02:48]} 12. g5 {[%clk 0:02:56]} 12... hxg5 {[%clk 0:02:46.5]}
13. hxg5 {[%clk 0:02:53.4]} 13... g6 {[%clk 0:02:45.4]} 14. Nd5 {[%clk
0:02:50.6]} 14... Rc8 {[%clk 0:02:27]} 15. Qd2 {[%clk 0:02:44.2]} 15... Nc5
{[%clk 0:02:11.9]} 16. O-O-O {[%clk 0:02:21.7]} 16... Nxb3+ {[%clk 0:02:08.5]}
17. axb3 {[%clk 0:02:21.6]} 17... Bxd5 {[%clk 0:01:53.5]} 18. exd5 {[%clk
0:02:18.4]} 18... Qa5 {[%clk 0:01:51.6]} 19. Qxa5 {[%clk 0:02:10.3]} 19... Nxa5
{[%clk 0:01:50.4]} 20. Kb1 {[%clk 0:02:10.9]} 20... b5 {[%clk 0:01:46.1]} 21.
Rh1 {[%clk 0:02:07.3]} 21... Rf8 {[%clk 0:01:43.9]} 22. Bg4 {[%clk 0:02:04]}
22... Rb8 {[%clk 0:01:41.1]} 23. Rde1 {[%clk 0:01:59.2]} 23... Kd8 {[%clk
0:01:29.6]} 24. f4 {[%clk 0:01:59]} 24... exf4 {[%clk 0:01:27.7]} 25. Bxf4
{[%clk 0:01:59.9]} 25... Nb7 {[%clk 0:01:23.5]} 26. b4 {[%clk 0:01:57.3]} 26...
a5 {[%clk 0:01:19.9]} 27. bxa5 {[%clk 0:01:58.2]} 27... Nxa5 {[%clk 0:01:19.8]}
28. Rxe7 {[%clk 0:01:58.7]} 28... Kxe7 {[%clk 0:01:13.8]} 29. Re1+ {[%clk
0:01:59.3]} 29... Kd8 {[%clk 0:01:08]} 30. Bxd6 {[%clk 0:01:59.8]} 1-0

[Event "Late-Titled-Tuesday-Blitz-October-03-2023"]
[Site "Chess.com"]
[Date "2023.10.03"]
[Round "3"]
[White "ArtemDyachuk"]
[Black "rasmussvane"]
[Result "1/2-1/2"]
[WhiteElo "2682"]
[BlackElo "2989"]
[TimeControl "180+1"]
[EndTime "14:23:58 PDT"]
[Termination "Game drawn by agreement"]

1. e4 {[%clk 0:03:00.9]} 1... c6 {[%clk 0:03:00]} 2. d4 {[%clk 0:03:00.8]} 2...
d5 {[%clk 0:03:00.9]} 3. e5 {[%clk 0:02:47.6]} 3... Bf5 {[%clk 0:02:58.6]} 4.
Nd2 {[%clk 0:02:46.1]} 4... e6 {[%clk 0:02:58.4]} 5. Nb3 {[%clk 0:02:46.3]} 5...
Nd7 {[%clk 0:02:58.4]} 6. Nf3 {[%clk 0:02:37.9]} 6... a6 {[%clk 0:02:57.9]} 7.
a4 {[%clk 0:02:33.6]} 7... c5 {[%clk 0:02:57.1]} 8. dxc5 {[%clk 0:02:30.6]} 8...
Nxc5 {[%clk 0:02:58]} 9. Nbd4 {[%clk 0:02:31]} 9... Bg4 {[%clk 0:02:53.5]} 10.
h3 {[%clk 0:02:24.7]} 10... Bxf3 {[%clk 0:02:53.6]} 11. Nxf3 {[%clk 0:02:22.6]}
11... Ne7 {[%clk 0:02:53.7]} 12. Be2 {[%clk 0:02:15.7]} 12... Nc6 {[%clk
0:02:53.9]} 13. O-O {[%clk 0:02:12.8]} 13... Qc7 {[%clk 0:02:44.3]} 14. Bf4
{[%clk 0:02:01.9]} 14... f6 {[%clk 0:02:44.7]} 15. Re1 {[%clk 0:01:45.3]} 15...
fxe5 {[%clk 0:02:29.4]} 16. Nxe5 {[%clk 0:01:37.7]} 16... Bd6 {[%clk 0:02:29.6]}
17. Nxc6 {[%clk 0:01:21.8]} 17... Bxf4 {[%clk 0:02:28.2]} 18. Nd4 {[%clk
0:01:20.4]} 18... O-O {[%clk 0:02:23.3]} 19. Bg4 {[%clk 0:01:02]} 19... Bh2+
{[%clk 0:01:50.2]} 20. Kh1 {[%clk 0:00:58.2]} 20... Rxf2 {[%clk 0:01:50.4]} 21.
Nxe6 {[%clk 0:00:48.9]} 21... Nxe6 {[%clk 0:01:50.6]} 22. Bxe6+ {[%clk 0:00:49]}
22... Kh8 {[%clk 0:01:50.9]} 23. Bxd5 {[%clk 0:00:47.6]} 1/2-1/2

[Event "Late-Titled-Tuesday-Blitz-October-03-2023"]
[Site "Chess.com"]
[Date "2023.10.03"]
[Round "3"]
[White "Njal28"]
[Black "Alexei_Gubajdullin"]
[Result "1-0"]
[WhiteElo "3101"]
[BlackElo "2761"]
[TimeControl "180+1"]
[EndTime "14:24:02 PDT"]
[Termination "Njal28 won by resignation"]

1. e4 {[%clk 0:03:00.9]} 1... g6 {[%clk 0:02:58.8]} 2. d4 {[%clk 0:03:00.9]}
2... Bg7 {[%clk 0:02:58]} 3. Nc3 {[%clk 0:03:01.5]} 3... d6 {[%clk 0:02:57.9]}
4. Nf3 {[%clk 0:03:00.4]} 4... a6 {[%clk 0:02:57.3]} 5. Be3 {[%clk 0:03:00]}
5... Nd7 {[%clk 0:02:56]} 6. Qd2 {[%clk 0:02:56]} 6... b5 {[%clk 0:02:55.8]} 7.
a4 {[%clk 0:02:54.7]} 7... b4 {[%clk 0:02:55]} 8. Ne2 {[%clk 0:02:44.4]} 8...
Ngf6 {[%clk 0:02:49.7]} 9. Ng3 {[%clk 0:02:45.3]} 9... a5 {[%clk 0:02:47.2]} 10.
Bh6 {[%clk 0:02:40.3]} 10... Bxh6 {[%clk 0:02:36.4]} 11. Qxh6 {[%clk 0:02:41.2]}
11... Ng4 {[%clk 0:01:51.2]} 12. Qg7 {[%clk 0:02:32.7]} 12... Ndf6 {[%clk
0:01:44.6]} 13. Ng5 {[%clk 0:02:26.3]} 13... Rf8 {[%clk 0:01:41.6]} 14. h3
{[%clk 0:02:03.9]} 14... h6 {[%clk 0:01:37.6]} 15. hxg4 {[%clk 0:02:02.4]} 15...
hxg5 {[%clk 0:01:35.9]} 16. Bb5+ {[%clk 0:02:03.1]} 16... Bd7 {[%clk 0:01:34.9]}
17. Rh8 {[%clk 0:02:02.9]} 17... Nh7 {[%clk 0:01:24.1]} 18. Qxh7 {[%clk
0:01:58.1]} 18... e6 {[%clk 0:01:21.9]} 19. Rxf8+ {[%clk 0:01:51.8]} 19... Kxf8
{[%clk 0:01:22.2]} 20. Qh8+ {[%clk 0:01:52.3]} 20... Ke7 {[%clk 0:01:22.7]} 21.
Qxd8+ {[%clk 0:01:53.2]} 21... Rxd8 {[%clk 0:01:22.5]} 22. Bxd7 {[%clk
0:01:54.1]} 22... Kxd7 {[%clk 0:01:22.1]} 23. Ke2 {[%clk 0:01:55]} 23... Rb8
{[%clk 0:01:18.9]} 24. Rh1 {[%clk 0:01:55.4]} 24... Ke7 {[%clk 0:01:19.1]} 25.
b3 {[%clk 0:01:54.6]} 25... Rc8 {[%clk 0:01:18.2]} 26. Nf1 {[%clk 0:01:52.8]}
26... c5 {[%clk 0:01:17.9]} 27. d5 {[%clk 0:01:52.2]} 27... e5 {[%clk
0:01:09.2]} 28. Ne3 {[%clk 0:01:50.6]} 28... Ra8 {[%clk 0:01:05.1]} 29. Nc4
{[%clk 0:01:50.4]} 29... Ra6 {[%clk 0:00:55.9]} 30. Rh8 {[%clk 0:01:49.9]} 30...
Kf6 {[%clk 0:00:55.3]} 31. Rd8 {[%clk 0:01:49.8]} 31... Ke7 {[%clk 0:00:55.3]}
32. Rb8 {[%clk 0:01:50.5]} 32... Kf6 {[%clk 0:00:54.3]} 33. Rb6 {[%clk 0:01:50]}
1-0

[Event "Late-Titled-Tuesday-Blitz-October-03-2023"]
[Site "Chess.com"]
[Date "2023.10.03"]
[Round "3"]
[White "PNEPaul"]
[Black "NCchamp"]
[Result "0-1"]
[WhiteElo "1945"]
[BlackElo "2318"]
[TimeControl "180+1"]
[EndTime "14:24:05 PDT"]
[Termination "NCchamp won by resignation"]

1. e4 {[%clk 0:02:46.9]} 1... c6 {[%clk 0:02:50.8]} 2. d4 {[%clk 0:02:46]} 2...
d5 {[%clk 0:02:51.7]} 3. exd5 {[%clk 0:02:45.4]} 3... cxd5 {[%clk 0:02:51.7]} 4.
c4 {[%clk 0:02:45.5]} 4... Nf6 {[%clk 0:02:47.6]} 5. Nc3 {[%clk 0:02:45.3]} 5...
g6 {[%clk 0:02:45.2]} 6. Nf3 {[%clk 0:02:45.2]} 6... Bg7 {[%clk 0:02:46.1]} 7.
Be2 {[%clk 0:02:45.2]} 7... O-O {[%clk 0:02:47]} 8. O-O {[%clk 0:02:45.3]} 8...
dxc4 {[%clk 0:02:46.4]} 9. Bxc4 {[%clk 0:02:44]} 9... Bg4 {[%clk 0:02:47.1]} 10.
Be2 {[%clk 0:02:43.9]} 10... Nc6 {[%clk 0:02:46.9]} 11. Be3 {[%clk 0:02:43.1]}
11... Nd5 {[%clk 0:02:43.3]} 12. Nxd5 {[%clk 0:02:42.8]} 12... Qxd5 {[%clk
0:02:44.2]} 13. Qd2 {[%clk 0:02:43]} 13... Rfd8 {[%clk 0:02:41.5]} 14. Rfd1
{[%clk 0:02:41.6]} 14... e6 {[%clk 0:02:20]} 15. h3 {[%clk 0:02:36.3]} 15...
Bxf3 {[%clk 0:02:15.6]} 16. Bxf3 {[%clk 0:02:36.1]} 16... Qb5 {[%clk 0:02:16.4]}
17. Bxc6 {[%clk 0:02:27.5]} 17... Qxc6 {[%clk 0:02:15.3]} 18. Rac1 {[%clk
0:02:26.6]} 18... Qa6 {[%clk 0:02:08.6]} 19. b3 {[%clk 0:02:22.9]} 19... Rd7
{[%clk 0:02:06.8]} 20. Bh6 {[%clk 0:01:50.2]} 20... Rxd4 {[%clk 0:02:03.6]} 21.
Qxd4 {[%clk 0:01:43.7]} 21... Bxd4 {[%clk 0:02:04.5]} 22. Rxd4 {[%clk
0:01:43.7]} 22... Qxa2 {[%clk 0:01:41.9]} 23. Rcd1 {[%clk 0:01:37.4]} 23... Qa5
{[%clk 0:01:26.8]} 24. Rd7 {[%clk 0:01:24.2]} 24... Re8 {[%clk 0:01:18.5]} 25.
Rxb7 {[%clk 0:01:20.5]} 25... Qh5 {[%clk 0:01:17.8]} 26. Be3 {[%clk 0:01:18]}
26... Qxd1+ {[%clk 0:01:17.7]} 0-1